fUST/lending_fUST_20241228
["ID","MTS","AMOUNT","RATE_DAILY","PERIOD"]
[346906348,1735356533360,-300.0,9.055e-05,2]
[346906349,1735356533386,-173.01790122,9.056e-05,2]
[346906350,1735356533426,-500.0,9.056e-05,2]
[346906351,1735356533457,-500.0,9.056e-05,2]
[346906352,1735356533485,-14.62372048,9.056e-05,2]
[346906353,1735356533520,-485.37627952,9.056e-05,2]
[346906354,1735356533551,-241.92213135,9.056e-05,2]
[346906355,1735356558824,-258.07786865,9.056e-05,2]
[346906356,1735356558851,-500.0,9.056e-05,2]
[346906357,1735356558879,-500.0,9.056e-05,2]
[346906358,1735356558905,-273.8625537,9.056e-05,2]
[346906359,1735356558936,-5.35640347,9.056e-05,2]
[346906360,1735356558966,-500.0,9.056e-05,2]
[346906361,1735356558993,-500.0,9.056e-05,2]
[346906362,1735356559020,-500.0,9.056e-05,2]
[346906363,1735356559051,-26.58401888,9.056e-05,2]
[346906364,1735356559083,-177.79878144,9.056e-05,2]
[346906365,1735356583664,-295.61719968,9.056e-05,2]
[346906366,1735356583691,-500.0,9.056e-05,2]
[346906367,1735356583718,-500.0,9.056e-05,2]
[346906368,1735356583746,-301.15681519,9.056e-05,2]
[346906369,1735356583887,-198.84318481,9.056e-05,2]
[346906370,1735356583914,-285.49410734,9.056e-05,2]
[346906371,1735356583941,-127.53232399,9.056e-05,2]
[346906372,1735356608507,-372.46767601,9.056e-05,2]
[346906373,1735356608536,-500.0,9.056e-05,2]
[346906374,1735356608563,-639.14930993,9.056e-05,2]
[346906375,1735356608593,-129.32990155,9.056e-05,2]
[346906376,1735356608626,-275.02002177,9.056e-05,2]
[346906377,1735356608651,-504.58,9.056e-05,2]
[346906378,1735356608680,-123.13454774,9.056e-05,2]
[346906429,1735356632127,-376.86545226,9.056e-05,2]
[346906430,1735356632137,-501.14386989,9.056e-05,2]
[346906431,1735356632146,-393.62612514,9.056e-05,2]
[346906432,1735356632156,-500.0,9.056e-05,2]
[346906434,1735356632166,-500.0,9.056e-05,2]
[346906436,1735356632175,-500.0,9.056e-05,2]
[346906438,1735356632185,-500.0,9.056e-05,2]
[346906441,1735356632194,-500.0,9.056e-05,2]
[346906443,1735356632203,-504.71317424,9.056e-05,2]
[346906445,1735356632213,-501.17175841,9.056e-05,2]
[346906447,1735356632223,-500.0,9.056e-05,2]
[346906449,1735356632233,-500.0,9.056e-05,2]
[346906450,1735356632242,-500.0,9.056e-05,2]
[346906451,1735356632252,-267.07312609,9.056e-05,2]
[346906452,1735356632264,-232.92687391,9.056e-05,2]
[346906453,1735356632274,-500.0,9.056e-05,2]
[346906454,1735356632283,-500.0,9.056e-05,2]
[346906455,1735356632294,-500.0,9.056e-05,2]
[346906456,1735356632304,-500.0,9.056e-05,2]
[346906457,1735356632313,-500.0,9.056e-05,2]
[346906458,1735356632323,-500.0,9.056e-05,2]
[346906459,1735356632332,-500.0,9.056e-05,2]
[346906460,1735356632341,-500.25215554,9.056e-05,2]
[346906461,1735356632353,-500.0,9.056e-05,2]
[346906462,1735356632362,-500.0,9.056e-05,2]
[346906463,1735356632373,-500.0,9.056e-05,2]
[346906464,1735356632383,-500.86059637,9.056e-05,2]
[346906465,1735356632394,-500.0,9.056e-05,2]
[346906466,1735356632405,-500.0,9.056e-05,2]
[346906467,1735356632415,-508.2510892,9.056e-05,2]
[346906468,1735356632424,-500.0,9.056e-05,2]
[346906469,1735356632434,-505.42074774,9.056e-05,2]
[346906470,1735356632445,-500.0,9.056e-05,2]
[346906471,1735356632455,-500.0,9.057e-05,2]
[346906472,1735356632466,-500.0,9.057e-05,2]
[346906473,1735356632476,-594.76704695,9.057e-05,2]
[346906474,1735356632487,-500.0,9.057e-05,2]
[346906475,1735356632499,-500.0,9.057e-05,2]
[346906476,1735356632508,-500.0,9.057e-05,2]
[346906477,1735356632519,-500.0,9.057e-05,2]
[346906478,1735356632528,-505.13617717,9.057e-05,2]
[346906479,1735356632540,-500.0,9.057e-05,2]
[346906480,1735356632550,-500.74047347,9.057e-05,2]
[346906481,1735356632560,-500.0,9.057e-05,2]
[346906482,1735356632573,-500.0,9.057e-05,2]
[346906483,1735356632584,-500.0,9.057e-05,2]
[346906484,1735356632595,-500.0,9.057e-05,2]
[346906485,1735356632609,-500.0,9.057e-05,2]
[346906486,1735356632618,-500.0,9.057e-05,2]
[346906487,1735356632627,-500.0,9.057e-05,2]
[346906488,1735356632637,-500.0,9.057e-05,2]
[346906489,1735356632647,-500.0,9.057e-05,2]
[346906490,1735356632657,-500.0,9.057e-05,2]
[346906491,1735356632666,-500.0,9.057e-05,2]
[346906492,1735356632677,-500.0,9.057e-05,2]
[346906493,1735356632687,-500.0,9.057e-05,2]
[346906494,1735356632697,-186.11746472,9.057e-05,2]
[346906495,1735356632707,-500.0,9.057e-05,2]
[346906496,1735356632717,-500.0,9.057e-05,2]
[346906497,1735356632727,-500.0,9.057e-05,2]
[346906498,1735356632738,-500.0,9.057e-05,2]
[346906499,1735356632749,-500.0,9.057e-05,2]
[346906500,1735356632759,-500.0,9.057e-05,2]
[346906501,1735356632770,-443.11,9.057e-05,2]
[346906502,1735356632780,-500.0,9.057e-05,2]
[346906503,1735356632791,-500.0,9.057e-05,2]
[346906504,1735356632801,-500.0,9.057e-05,2]
[346906505,1735356632811,-614.42874613,9.057e-05,2]
[346906506,1735356632821,-500.0,9.057e-05,2]
[346906507,1735356632830,-526.28,9.057e-05,2]
[346906508,1735356632839,-500.0,9.057e-05,2]
[346906509,1735356632849,-500.0,9.057e-05,2]
[346906510,1735356632859,-500.0,9.057e-05,2]
[346906511,1735356632868,-500.0,9.057e-05,2]
[346906512,1735356632877,-500.0,9.057e-05,2]
[346906513,1735356632886,-500.0,9.057e-05,2]
[346906514,1735356632895,-500.0,9.057e-05,2]
[346906515,1735356632904,-500.0,9.057e-05,2]
[346906516,1735356632914,-501.86356303,9.057e-05,2]
[346906517,1735356632923,-500.0,9.057e-05,2]
[346906518,1735356632932,-338.94650333,9.057e-05,2]
[346906519,1735356632942,-500.0,9.057e-05,2]
[346906520,1735356632951,-500.0,9.057e-05,2]
[346906521,1735356632960,-500.0,9.057e-05,2]
[346906522,1735356632970,-500.0,9.057e-05,2]
[346906523,1735356632979,-500.0,9.057e-05,2]
[346906524,1735356632991,-500.0,9.057e-05,2]
[346906525,1735356633004,-98.46207966,9.057e-05,2]
[346906574,1735356637955,-161.76625124,9.056e-05,2]
[346906576,1735356637966,-500.0,9.056e-05,2]
[346906578,1735356637976,-500.0,9.056e-05,2]
[346906579,1735356637988,-500.0,9.056e-05,2]
[346906581,1735356638000,-401.53792034,9.057e-05,2]
[346906583,1735356638010,-500.0,9.057e-05,2]
[346906586,1735356638021,-500.15711434,9.057e-05,2]
[346906588,1735356638033,-500.0,9.057e-05,2]
[346906590,1735356638044,-500.0,9.057e-05,2]
[346906592,1735356638055,-500.0,9.057e-05,2]
[346906594,1735356638066,-216.0003785,9.057e-05,2]
[346906597,1735356638077,-500.75501063,9.057e-05,2]
[346906599,1735356638088,-500.0,9.057e-05,2]
[346906601,1735356638100,-500.0,9.057e-05,2]
[346906603,1735356638111,-500.0,9.057e-05,2]
[346906605,1735356638123,-500.0,9.057e-05,2]
[346906607,1735356638133,-500.0,9.057e-05,2]
[346906609,1735356638143,-500.0,9.057e-05,2]
[346906612,1735356638153,-500.0,9.057e-05,2]
[346906614,1735356638162,-209.22446935,9.057e-05,2]
[346906616,1735356638172,-500.0,9.057e-05,2]
[346906618,1735356638183,-500.0,9.057e-05,2]
[346906620,1735356638194,-500.0,9.057e-05,2]
[346906622,1735356638207,-500.0,9.057e-05,2]
[346906625,1735356638218,-500.0,9.057e-05,2]
[346906627,1735356638229,-500.0,9.057e-05,2]
[346906629,1735356638240,-500.0,9.057e-05,2]
[346906631,1735356638250,-508.37949936,9.057e-05,2]
[346906633,1735356638260,-500.0,9.057e-05,2]
[346906635,1735356638270,-500.0,9.057e-05,2]
[346906637,1735356638281,-406.11824847,9.057e-05,2]
[346906639,1735356638291,-638.55,9.057e-05,2]
[346906642,1735356638302,-500.0,9.057e-05,2]
[346906644,1735356638314,-502.32286786,9.057e-05,2]
[346906646,1735356638326,-500.0,9.057e-05,2]
[346906648,1735356638339,-500.0,9.057e-05,2]
[346906650,1735356638350,-500.95777353,9.057e-05,2]
[346906652,1735356638360,-500.0,9.057e-05,2]
[346906654,1735356638370,-500.0,9.057e-05,2]
[346906657,1735356638380,-604.73306815,9.057e-05,2]
[346906659,1735356638390,-500.0,9.057e-05,2]
[346906661,1735356638400,-544.04,9.057e-05,2]
[346906663,1735356638410,-500.40084431,9.057e-05,2]
[346906665,1735356638421,-500.0,9.057e-05,2]
[346906667,1735356638432,-500.0,9.057e-05,2]
[346906669,1735356638442,-500.0,9.057e-05,2]
[346906671,1735356638453,-255.667424,9.057e-05,2]
[346906673,1735356638463,-500.0,9.057e-05,2]
[346906675,1735356638473,-498.70649106,9.057e-05,2]
[346906678,1735356638483,-519.64,9.057e-05,2]
[346906680,1735356638493,-500.0,9.057e-05,2]
[346906681,1735356638503,-500.0,9.057e-05,2]
[346906682,1735356638513,-500.0,9.057e-05,2]
[346906683,1735356638522,-500.0,9.057e-05,2]
[346906684,1735356638532,-500.0,9.057e-05,2]
[346906685,1735356638542,-500.0,9.057e-05,2]
[346906686,1735356638553,-500.0,9.057e-05,2]
[346906687,1735356638563,-500.0,9.057e-05,2]
[346906688,1735356638572,-500.0,9.057e-05,2]
[346906689,1735356638582,-500.0,9.057e-05,2]
[346906690,1735356638592,-525.83365476,9.057e-05,2]
[346906691,1735356638603,-504.02,9.057e-05,2]
[346906692,1735356638614,-500.0,9.057e-05,2]
[346906693,1735356638624,-500.0,9.057e-05,2]
[346906694,1735356638635,-500.0,9.057e-05,2]
[346906695,1735356638645,-500.0,9.057e-05,2]
[346906696,1735356638656,-500.0,9.057e-05,2]
[346906697,1735356638666,-500.0,9.057e-05,2]
[346906698,1735356638676,-500.0,9.057e-05,2]
[346906699,1735356638687,-500.0,9.057e-05,2]
[346906700,1735356638697,-500.0,9.057e-05,2]
[346906714,1735356638818,-626.92236712,9.057e-05,2]
[346906716,1735356638827,-502.59694491,9.057e-05,2]
[346906718,1735356638836,-508.95610479,9.057e-05,2]
[346906720,1735356638845,-500.0,9.057e-05,2]
[346906722,1735356638855,-500.0,9.057e-05,2]
[346906724,1735356638863,-502.73,9.057e-05,2]
[346906726,1735356638873,-567.03,9.057e-05,2]
[346906728,1735356638882,-500.0,9.057e-05,2]
[346906730,1735356638891,-501.59634523,9.057e-05,2]
[346906732,1735356638900,-500.0,9.057e-05,2]
[346906734,1735356638909,-500.0,9.057e-05,2]
[346906736,1735356638919,-500.0,9.057e-05,2]
[346906738,1735356638928,-500.0,9.057e-05,2]
[346906740,1735356638936,-208.41790628,9.057e-05,2]
[346906743,1735356638950,-291.58209372,9.057e-05,2]
[346906744,1735356638958,-602.04403142,9.057e-05,2]
[346906747,1735356638970,-2946.99596858,9.057e-05,2]
[346906749,1735356638979,-86.64930973,9.057e-05,2]
[346906828,1735356639901,-502.48255717,9.056e-05,2]
[346906831,1735356639911,-500.0,9.056e-05,2]
[346906832,1735356639921,-3462.39069027,9.057e-05,2]
[346906834,1735356639930,-515.97,9.057e-05,2]
[346906836,1735356639940,-500.0,9.057e-05,2]
[346906838,1735356639950,-500.0,9.057e-05,2]
[346906840,1735356639959,-500.0,9.057e-05,2]
[346906842,1735356639968,-500.0,9.057e-05,2]
[346906844,1735356639978,-500.0,9.057e-05,2]
[346906847,1735356639987,-500.91506026,9.057e-05,2]
[346906848,1735356639996,-500.0,9.057e-05,2]
[346906851,1735356640006,-500.0,9.057e-05,2]
[346906852,1735356640015,-500.0,9.057e-05,2]
[346906854,1735356640024,-500.0,9.057e-05,2]
[346906856,1735356640033,-500.41697183,9.057e-05,2]
[346906858,1735356640042,-500.0,9.057e-05,2]
[346906860,1735356640052,-500.4751466,9.057e-05,2]
[346906862,1735356640061,-500.0,9.057e-05,2]
[346906864,1735356640070,-502.63623834,9.057e-05,2]
[346906866,1735356640079,-500.0,9.057e-05,2]
[346906868,1735356640089,-617.78067013,9.057e-05,2]
[346906869,1735356640098,-500.0,9.057e-05,2]
[346906870,1735356640109,-500.0,9.057e-05,2]
[346906872,1735356640118,-611.62,9.057e-05,2]
[346906874,1735356640128,-500.54294926,9.057e-05,2]
[346906875,1735356640137,-500.0,9.057e-05,2]
[346906876,1735356640147,-500.0,9.057e-05,2]
[346906877,1735356640156,-500.0,9.057e-05,2]
[346906878,1735356640165,-500.30004889,9.057e-05,2]
[346906879,1735356640175,-500.0,9.057e-05,2]
[346906880,1735356640184,-500.0,9.057e-05,2]
[346906881,1735356640193,-501.15609316,9.057e-05,2]
[346906882,1735356640203,-500.0,9.057e-05,2]
[346906883,1735356640212,-500.0,9.057e-05,2]
[346906884,1735356640221,-500.0,9.057e-05,2]
[346906885,1735356640231,-500.0,9.057e-05,2]
[346906886,1735356640241,-500.0,9.057e-05,2]
[346906887,1735356640251,-500.0,9.057e-05,2]
[346906888,1735356640260,-500.0,9.057e-05,2]
[346906889,1735356640269,-500.0,9.057e-05,2]
[346906890,1735356640278,-500.0,9.057e-05,2]
[346906891,1735356640287,-228.58236675,9.057e-05,2]
[346906892,1735356640296,-501.60320531,9.057e-05,2]
[346906893,1735356640306,-500.48381721,9.057e-05,2]
[346906894,1735356640315,-500.0,9.057e-05,2]
[346906895,1735356640325,-500.0,9.057e-05,2]
[346906896,1735356640335,-500.0,9.057e-05,2]
[346906897,1735356640344,-344.32348869,9.057e-05,2]
[346906898,1735356640354,-500.0,9.058e-05,2]
[346906899,1735356640364,-500.0,9.058e-05,2]
[346906900,1735356640373,-500.0,9.058e-05,2]
[346906901,1735356640382,-475.7073951,9.058e-05,2]
[346906902,1735356640393,-500.0,9.058e-05,2]
[346906903,1735356640403,-500.8992017,9.058e-05,2]
[346906904,1735356640412,-501.65883138,9.058e-05,2]
[346906905,1735356640421,-501.00765593,9.058e-05,2]
[346906906,1735356640430,-621.87475686,9.058e-05,2]
[346906907,1735356640439,-431.02703449,9.058e-05,2]
[346906908,1735356640448,-500.0,9.058e-05,2]
[346906909,1735356640458,-500.0,9.058e-05,2]
[346906910,1735356640467,-500.0,9.058e-05,2]
[346906911,1735356640476,-500.0,9.058e-05,2]
[346906912,1735356640486,-501.27886502,9.058e-05,2]
[346906913,1735356640495,-500.0,9.058e-05,2]
[346906914,1735356640504,-500.91134866,9.058e-05,2]
[346906915,1735356640513,-501.52749384,9.058e-05,2]
[346906916,1735356640523,-501.91669299,9.058e-05,2]
[346906917,1735356640533,-229.54514627,9.058e-05,2]
[346906918,1735356640542,-500.0,9.058e-05,2]
[346906919,1735356640551,-500.0,9.058e-05,2]
[346906920,1735356640561,-500.0,9.058e-05,2]
[346906921,1735356640570,-500.0,9.058e-05,2]
[346906922,1735356640579,-503.0702999,9.058e-05,2]
[346906923,1735356640588,-511.31749964,9.058e-05,2]
[346906924,1735356640597,-500.0,9.058e-05,2]
[346906925,1735356640608,-500.0,9.058e-05,2]
[346906926,1735356640620,-463.24722494,9.058e-05,2]
[346906927,1735356640629,-610.32001466,9.058e-05,2]
[346906928,1735356640638,-500.0,9.058e-05,2]
[346906929,1735356640647,-182.09454652,9.058e-05,2]
[346906930,1735356640656,-500.0,9.058e-05,2]
[346906931,1735356640667,-500.0,9.058e-05,2]
[346906932,1735356640678,-500.0,9.058e-05,2]
[346906933,1735356640690,-500.0,9.058e-05,2]
[346906934,1735356640699,-500.66391752,9.058e-05,2]
[346906935,1735356640709,-500.0,9.058e-05,2]
[346906936,1735356640718,-505.88130915,9.058e-05,2]
[346906937,1735356640727,-500.0,9.058e-05,2]
[346906938,1735356640737,-500.0,9.058e-05,2]
[346906939,1735356640747,-500.0,9.058e-05,2]
[346906940,1735356640758,-500.0,9.058e-05,2]
[346906941,1735356640768,-500.0,9.058e-05,2]
[346906942,1735356640779,-500.0,9.058e-05,2]
[346906943,1735356640789,-500.0,9.058e-05,2]
[346906944,1735356640799,-500.0,9.058e-05,2]
[346906945,1735356640811,-500.0,9.058e-05,2]
[346906946,1735356640821,-500.0,9.058e-05,2]
[346906947,1735356640831,-500.0,9.058e-05,2]
[346906948,1735356640840,-538.17112668,9.058e-05,2]
[346906949,1735356640849,-500.0,9.058e-05,2]
[346906950,1735356640859,-500.0,9.058e-05,2]
[346906951,1735356640869,-501.49771653,9.058e-05,2]
[346906952,1735356640879,-500.0,9.058e-05,2]
[346906953,1735356640890,-500.0,9.058e-05,2]
[346906954,1735356640899,-502.06587508,9.058e-05,2]
[346906955,1735356640909,-500.0,9.058e-05,2]
[346906956,1735356640918,-500.0,9.058e-05,2]
[346906957,1735356640927,-500.0,9.058e-05,2]
[346906958,1735356640937,-500.0,9.058e-05,2]
[346906959,1735356640946,-500.0,9.058e-05,2]
[346906960,1735356640956,-500.0,9.058e-05,2]
[346906961,1735356640966,-500.55086008,9.058e-05,2]
[346906962,1735356640975,-500.0,9.058e-05,2]
[346906963,1735356640985,-500.0,9.058e-05,2]
[346906964,1735356640994,-500.0,9.058e-05,2]
[346906965,1735356641003,-500.0,9.058e-05,2]
[346906966,1735356641013,-500.0,9.058e-05,2]
[346906967,1735356641022,-365.73285434,9.058e-05,2]
[346906968,1735356641032,-500.0,9.058e-05,2]
[346906969,1735356641042,-500.0,9.058e-05,2]
[346906970,1735356641051,-500.0,9.058e-05,2]
[346906971,1735356641167,-500.0,9.058e-05,2]
[346906972,1735356641179,-500.0,9.058e-05,2]
[346906973,1735356641188,-500.0,9.058e-05,2]
[346906974,1735356641198,-500.0,9.058e-05,2]
[346906975,1735356641207,-500.0,9.058e-05,2]
[346906976,1735356641216,-500.0,9.058e-05,2]
[346906977,1735356641226,-500.0,9.058e-05,2]
[346906978,1735356641235,-500.0,9.058e-05,2]
[346906979,1735356641244,-500.0,9.058e-05,2]
[346906980,1735356641254,-500.0,9.058e-05,2]
[346906981,1735356641265,-500.0,9.058e-05,2]
[346906982,1735356641274,-516.25529059,9.058e-05,2]
[346906983,1735356641284,-500.0,9.058e-05,2]
[346906984,1735356641294,-500.0,9.058e-05,2]
[346906985,1735356641304,-500.0,9.058e-05,2]
[346906986,1735356641314,-500.0,9.058e-05,2]
[346906987,1735356641323,-500.0,9.058e-05,2]
[346906988,1735356641333,-500.0,9.058e-05,2]
[346906989,1735356641342,-501.79642422,9.058e-05,2]
[346906990,1735356641351,-500.0,9.058e-05,2]
[346906991,1735356641362,-500.0,9.058e-05,2]
[346906992,1735356641371,-500.0,9.058e-05,2]
[346906993,1735356641381,-500.0,9.058e-05,2]
[346906994,1735356641391,-500.0,9.058e-05,2]
[346906995,1735356641401,-364.20932409,9.058e-05,2]
[346906996,1735356641411,-500.0,9.058e-05,2]
[346906997,1735356641422,-500.0,9.058e-05,2]
[346906998,1735356641433,-500.0,9.058e-05,2]
[346906999,1735356641443,-388.48438315,9.058e-05,2]
[346907000,1735356641453,-500.0,9.058e-05,2]
[346907001,1735356641463,-501.16257872,9.058e-05,2]
[346907002,1735356641473,-500.0,9.058e-05,2]
[346907003,1735356641482,-500.0,9.058e-05,2]
[346907004,1735356641492,-502.03949532,9.058e-05,2]
[346907005,1735356641501,-501.30343656,9.058e-05,2]
[346907006,1735356641511,-500.0,9.058e-05,2]
[346907007,1735356641520,-500.57610154,9.058e-05,2]
[346907008,1735356641529,-528.74037459,9.058e-05,2]
[346907009,1735356641540,-500.0,9.058e-05,2]
[346907010,1735356641549,-522.53,9.058e-05,2]
[346907011,1735356641559,-500.0,9.058e-05,2]
[346907012,1735356641569,-500.99514811,9.058e-05,2]
[346907013,1735356641579,-502.09161867,9.058e-05,2]
[346907014,1735356641588,-644.9963079,9.058e-05,2]
[346907015,1735356641598,-500.0,9.058e-05,2]
[346907016,1735356641609,-500.0,9.058e-05,2]
[346907017,1735356641621,-500.95652555,9.058e-05,2]
[346907018,1735356641631,-500.0,9.058e-05,2]
[346907019,1735356641641,-643.33916943,9.058e-05,2]
[346907020,1735356641651,-501.34671843,9.058e-05,2]
[346907021,1735356641660,-500.0,9.058e-05,2]
[346907022,1735356641669,-500.0,9.058e-05,2]
[346907023,1735356641679,-500.0,9.058e-05,2]
[346907024,1735356641688,-500.0,9.058e-05,2]
[346907025,1735356641701,-500.0,9.058e-05,2]
[346907026,1735356641711,-500.0,9.058e-05,2]
[346907027,1735356641720,-500.21986081,9.058e-05,2]
[346907028,1735356641730,-516.38023893,9.058e-05,2]
[346907029,1735356641741,-500.0,9.058e-05,2]
[346907030,1735356641750,-500.85216162,9.058e-05,2]
[346907031,1735356641759,-500.88895656,9.058e-05,2]
[346907032,1735356641769,-501.25442478,9.058e-05,2]
[346907033,1735356641778,-500.0,9.058e-05,2]
[346907034,1735356641788,-500.0,9.058e-05,2]
[346907035,1735356641798,-501.64502687,9.058e-05,2]
[346907036,1735356641807,-500.0,9.058e-05,2]
[346907037,1735356641816,-500.0,9.058e-05,2]
[346907038,1735356641826,-500.0,9.058e-05,2]
[346907039,1735356641835,-500.46816426,9.058e-05,2]
[346907040,1735356641844,-500.47060774,9.058e-05,2]
[346907041,1735356641854,-500.0,9.058e-05,2]
[346907042,1735356641863,-500.0,9.058e-05,2]
[346907043,1735356641872,-500.0,9.058e-05,2]
[346907044,1735356641882,-500.0,9.058e-05,2]
[346907045,1735356641891,-500.70184299,9.058e-05,2]
[346907046,1735356641900,-501.19245751,9.058e-05,2]
[346907047,1735356641910,-500.0,9.058e-05,2]
[346907048,1735356641919,-500.0,9.058e-05,2]
[346907049,1735356641929,-500.0,9.058e-05,2]
[346907050,1735356641938,-525.51444495,9.058e-05,2]
[346907051,1735356641948,-500.50761409,9.058e-05,2]
[346907052,1735356641957,-500.0,9.058e-05,2]
[346907053,1735356641966,-500.58197198,9.058e-05,2]
[346907054,1735356641976,-500.0,9.058e-05,2]
[346907055,1735356641986,-500.0,9.058e-05,2]
[346907056,1735356641995,-500.0,9.058e-05,2]
[346907057,1735356642004,-500.0,9.058e-05,2]
[346907058,1735356642014,-500.84453449,9.058e-05,2]
[346907059,1735356642023,-544.69696242,9.058e-05,2]
[346907060,1735356642033,-500.21918411,9.058e-05,2]
[346907061,1735356642042,-500.0,9.058e-05,2]
[346907062,1735356642051,-500.48743359,9.058e-05,2]
[346907063,1735356642061,-500.0,9.058e-05,2]
[346907064,1735356642071,-227.94172099,9.058e-05,2]
[346907065,1735356642080,-500.0,9.058e-05,2]
[346907066,1735356642091,-500.0,9.058e-05,2]
[346907067,1735356642100,-500.25532331,9.058e-05,2]
[346907068,1735356642111,-500.0,9.058e-05,2]
[346907069,1735356642120,-500.0,9.058e-05,2]
[346907070,1735356642130,-494.69327351,9.058e-05,2]
[346907071,1735356642139,-500.0,9.058e-05,2]
[346907072,1735356642148,-500.0,9.058e-05,2]
[346907073,1735356642158,-500.0,9.058e-05,2]
[346907074,1735356642169,-500.0,9.058e-05,2]
[346907075,1735356642180,-500.0,9.058e-05,2]
[346907076,1735356642189,-500.0,9.058e-05,2]
[346907077,1735356642199,-500.0,9.058e-05,2]
[346907078,1735356642210,-500.0,9.058e-05,2]
[346907079,1735356642220,-500.0,9.058e-05,2]
[346907080,1735356642229,-500.0,9.058e-05,2]
[346907081,1735356642239,-500.0,9.058e-05,2]
[346907082,1735356642248,-500.0,9.058e-05,2]
[346907083,1735356642258,-500.0,9.058e-05,2]
[346907084,1735356642267,-500.0,9.058e-05,2]
[346907085,1735356642277,-500.0,9.058e-05,2]
[346907086,1735356642287,-500.0,9.058e-05,2]
[346907087,1735356642381,-500.0,9.058e-05,2]
[346907088,1735356642392,-500.0,9.058e-05,2]
[346907089,1735356642401,-500.0,9.058e-05,2]
[346907090,1735356642411,-500.0,9.058e-05,2]
[346907091,1735356642420,-500.0,9.058e-05,2]
[346907092,1735356642430,-500.0,9.058e-05,2]
[346907093,1735356642439,-500.0,9.058e-05,2]
[346907094,1735356642451,-500.23292986,9.058e-05,2]
[346907095,1735356642460,-500.0,9.058e-05,2]
[346907096,1735356642471,-500.0,9.058e-05,2]
[346907097,1735356642481,-383.52264034,9.058e-05,2]
[346907098,1735356642490,-500.0,9.058e-05,2]
[346907099,1735356642500,-500.82494518,9.058e-05,2]
[346907100,1735356642509,-500.0,9.058e-05,2]
[346907101,1735356642519,-500.0,9.058e-05,2]
[346907102,1735356642530,-500.0,9.058e-05,2]
[346907103,1735356642540,-500.33899975,9.058e-05,2]
[346907105,1735356642550,-500.0,9.058e-05,2]
[346907107,1735356642559,-437.47336013,9.058e-05,2]
[346907109,1735356642569,-500.0,9.058e-05,2]
[346907111,1735356642578,-500.0,9.058e-05,2]
[346907112,1735356642587,-500.0,9.058e-05,2]
[346907114,1735356642596,-500.0,9.058e-05,2]
[346907116,1735356642606,-500.0,9.058e-05,2]
[346907117,1735356642619,-500.0,9.058e-05,2]
[346907118,1735356642628,-502.73329721,9.058e-05,2]
[346907119,1735356642638,-500.0,9.058e-05,2]
[346907120,1735356642647,-500.0,9.058e-05,2]
[346907122,1735356642657,-500.0,9.058e-05,2]
[346907124,1735356642666,-500.71655055,9.058e-05,2]
[346907126,1735356642675,-500.0,9.058e-05,2]
[346907128,1735356642686,-500.0,9.058e-05,2]
[346907129,1735356642696,-500.0,9.058e-05,2]
[346907130,1735356642705,-500.42722219,9.058e-05,2]
[346907131,1735356642714,-502.17813048,9.058e-05,2]
[346907132,1735356642723,-500.0,9.058e-05,2]
[346907133,1735356642732,-500.0,9.058e-05,2]
[346907134,1735356642741,-500.0,9.058e-05,2]
[346907135,1735356642751,-500.45599174,9.058e-05,2]
[346907136,1735356642760,-501.22668737,9.058e-05,2]
[346907137,1735356642769,-500.0,9.058e-05,2]
[346907138,1735356642779,-500.0,9.058e-05,2]
[346907140,1735356642788,-500.0,9.058e-05,2]
[346907142,1735356642797,-500.0,9.058e-05,2]
[346907144,1735356642806,-500.0,9.058e-05,2]
[346907145,1735356642816,-500.0,9.058e-05,2]
[346907147,1735356642825,-500.0,9.058e-05,2]
[346907149,1735356642835,-500.0,9.058e-05,2]
[346907151,1735356642844,-500.0,9.058e-05,2]
[346907152,1735356642853,-500.0,9.058e-05,2]
[346907153,1735356642863,-500.17567741,9.058e-05,2]
[346907154,1735356642873,-500.0,9.058e-05,2]
[346907155,1735356642882,-275.29411513,9.058e-05,2]
[346907156,1735356642891,-500.0,9.058e-05,2]
[346907157,1735356642900,-500.0,9.058e-05,2]